[Event "Early-Titled-Tuesday-Blitz-May-14-2024"]
[Site "Chess.com"]
[Date "2024.05.14"]
[Round "1"]
[White "SuperJesus88"]
[Black "pheonixking2000"]
[Result "1-0"]
[WhiteElo "2508"]
[BlackElo "2838"]
[TimeControl "180+1"]
[EndTime "8:07:46 PDT"]
[Termination "SuperJesus88 won by resignation"]

1. e4 {[%clk 0:03:00.9]} 1... e6 {[%clk 0:02:57.8]} 2. d4 {[%clk 0:02:59.2]}
2... d5 {[%clk 0:02:58.7]} 3. Nd2 {[%clk 0:02:59.1]} 3... c5 {[%clk 0:02:57.2]}
4. exd5 {[%clk 0:02:58.9]} 4... Qxd5 {[%clk 0:02:57.1]} 5. Ngf3 {[%clk
0:02:59.4]} 5... cxd4 {[%clk 0:02:57]} 6. Bc4 {[%clk 0:03:00]} 6... Qd6 {[%clk
0:02:56.7]} 7. O-O {[%clk 0:03:00]} 7... Nf6 {[%clk 0:02:56.5]} 8. Nb3 {[%clk
0:03:00.2]} 8... Nc6 {[%clk 0:02:55.1]} 9. Nbxd4 {[%clk 0:02:59.3]} 9... Nxd4
{[%clk 0:02:55]} 10. Qxd4 {[%clk 0:02:59.8]} 10... Qxd4 {[%clk 0:02:53.3]} 11.
Nxd4 {[%clk 0:03:00.7]} 11... Bd7 {[%clk 0:02:53]} 12. Re1 {[%clk 0:03:00.9]}
12... Bc5 {[%clk 0:02:42.1]} 13. Nb3 {[%clk 0:02:57.2]} 13... Bb6 {[%clk
0:02:35.1]} 14. Be3 {[%clk 0:02:52.9]} 14... Bxe3 {[%clk 0:02:29.9]} 15. Rxe3
{[%clk 0:02:52.8]} 15... Ke7 {[%clk 0:02:30.6]} 16. c3 {[%clk 0:02:47.2]} 16...
Rac8 {[%clk 0:02:30.2]} 17. Be2 {[%clk 0:02:46.6]} 17... Rhd8 {[%clk 0:02:30.6]}
18. Bf3 {[%clk 0:02:46.1]} 18... Bc6 {[%clk 0:02:30.5]} 19. Bxc6 {[%clk
0:02:46]} 19... Rxc6 {[%clk 0:02:31.2]} 20. Kf1 {[%clk 0:02:44.3]} 20... Rb6
{[%clk 0:02:24]} 21. Re2 {[%clk 0:02:41.3]} 21... Nd5 {[%clk 0:02:08.7]} 22. g3
{[%clk 0:02:38.9]} 22... Rc8 {[%clk 0:01:52.1]} 23. Rd1 {[%clk 0:02:36.7]} 23...
Kf6 {[%clk 0:01:50.7]} 24. Ke1 {[%clk 0:02:33.7]} 24... Ra6 {[%clk 0:01:38.7]}
25. a3 {[%clk 0:02:33]} 25... Rb6 {[%clk 0:01:35.7]} 26. Nd4 {[%clk 0:02:32.4]}
26... a5 {[%clk 0:01:32.9]} 27. f4 {[%clk 0:02:30.1]} 27... a4 {[%clk
0:01:28.6]} 28. Nf3 {[%clk 0:02:30.3]} 28... Rc7 {[%clk 0:01:22.4]} 29. Ne5
{[%clk 0:02:29.7]} 29... h5 {[%clk 0:01:20.4]} 30. Rd4 {[%clk 0:02:26.3]} 30...
Ra6 {[%clk 0:01:13.4]} 31. Ree4 {[%clk 0:02:20.6]} 31... b5 {[%clk 0:01:12.6]}
32. Re2 {[%clk 0:02:16.4]} 32... g6 {[%clk 0:01:11.9]} 33. Kf2 {[%clk 0:02:16]}
33... Rb6 {[%clk 0:01:10.2]} 34. Kf3 {[%clk 0:02:14.4]} 34... Rd6 {[%clk
0:01:07]} 35. Red2 {[%clk 0:02:02]} 35... Rb6 {[%clk 0:01:03.8]} 36. h3 {[%clk
0:02:01.7]} 36... Ke7 {[%clk 0:01:03.5]} 37. g4 {[%clk 0:02:00.8]} 37... hxg4+
{[%clk 0:01:03.5]} 38. hxg4 {[%clk 0:02:01.7]} 38... Rb8 {[%clk 0:01:01.3]} 39.
Rh2 {[%clk 0:02:01.8]} 39... Nf6 {[%clk 0:00:53.2]} 40. g5 {[%clk 0:01:57]}
40... Nh5 {[%clk 0:00:41.9]} 41. Rhd2 {[%clk 0:01:55.6]} 41... Rbc8 {[%clk
0:00:38.4]} 42. Rb4 {[%clk 0:01:42.7]} 42... Rb7 {[%clk 0:00:34.8]} 43. c4
{[%clk 0:01:41]} 43... Rc5 {[%clk 0:00:34.7]} 44. cxb5 {[%clk 0:01:33.8]} 44...
Rcxb5 {[%clk 0:00:34.9]} 45. Rxa4 {[%clk 0:01:17.9]} 45... Rb3+ {[%clk
0:00:29.8]} 46. Rd3 {[%clk 0:01:12.4]} 46... Rxb2 {[%clk 0:00:20.1]} 47. Ra8
{[%clk 0:01:11.3]} 47... Rc7 {[%clk 0:00:12.8]} 48. Rad8 {[%clk 0:01:03.8]}
48... Ng7 {[%clk 0:00:09.6]} 49. R8d7+ {[%clk 0:01:02]} 49... Rxd7 {[%clk
0:00:10]} 50. Rxd7+ {[%clk 0:01:02.1]} 50... Ke8 {[%clk 0:00:10.7]} 51. Rxf7
{[%clk 0:01:00.7]} 51... Rb3+ {[%clk 0:00:11.4]} 52. Kf2 {[%clk 0:00:58.5]}
52... Nf5 {[%clk 0:00:12.3]} 53. Ra7 {[%clk 0:00:57.7]} 53... Rb2+ {[%clk
0:00:11.2]} 54. Ke1 {[%clk 0:00:58.1]} 54... Nd4 {[%clk 0:00:05.3]} 55. Nxg6
{[%clk 0:00:48.3]} 55... Rh2 {[%clk 0:00:02.4]} 56. Ne5 {[%clk 0:00:46.6]} 56...
Nf5 {[%clk 0:00:02.1]} 57. a4 {[%clk 0:00:45.2]} 57... Rh4 {[%clk 0:00:02.1]}
58. Ra8+ {[%clk 0:00:41.5]} 58... Ke7 {[%clk 0:00:02.7]} 59. Ng6+ {[%clk
0:00:41.8]} 1-0

[Event "Early-Titled-Tuesday-Blitz-May-14-2024"]
[Site "Chess.com"]
[Date "2024.05.14"]
[Round "1"]
[White "wild3000"]
[Black "kingofthenil"]
[Result "1-0"]
[WhiteElo "2504"]
[BlackElo "2833"]
[TimeControl "180+1"]
[EndTime "8:07:46 PDT"]
[Termination "wild3000 won by resignation"]

1. d4 {[%clk 0:03:00.8]} 1... d5 {[%clk 0:02:58.7]} 2. Nf3 {[%clk 0:03:00.9]}
2... Bg4 {[%clk 0:02:54.9]} 3. e3 {[%clk 0:03:00.3]} 3... e6 {[%clk 0:02:36.3]}
4. Be2 {[%clk 0:03:00.3]} 4... Nd7 {[%clk 0:02:35.4]} 5. O-O {[%clk 0:02:59.8]}
5... Bd6 {[%clk 0:02:34.9]} 6. c4 {[%clk 0:02:59.9]} 6... c6 {[%clk 0:02:35.1]}
7. Nc3 {[%clk 0:02:59.7]} 7... f5 {[%clk 0:02:34.8]} 8. a3 {[%clk 0:02:51.1]}
8... Ngf6 {[%clk 0:02:30.4]} 9. b4 {[%clk 0:02:43.2]} 9... O-O {[%clk
0:02:29.6]} 10. Bb2 {[%clk 0:02:42.7]} 10... Ne4 {[%clk 0:02:13.6]} 11. c5
{[%clk 0:02:36.9]} 11... Bc7 {[%clk 0:02:09.7]} 12. Nxe4 {[%clk 0:02:03.7]}
12... fxe4 {[%clk 0:02:08.2]} 13. Ne5 {[%clk 0:02:04]} 13... Bxe2 {[%clk
0:02:07.2]} 14. Qxe2 {[%clk 0:02:02.2]} 14... Nxe5 {[%clk 0:02:03.9]} 15. dxe5
{[%clk 0:02:02.3]} 15... Qg5 {[%clk 0:02:03.2]} 16. b5 {[%clk 0:01:51.6]} 16...
Bxe5 {[%clk 0:02:01.2]} 17. bxc6 {[%clk 0:01:44.9]} 17... bxc6 {[%clk
0:01:59.9]} 18. Bxe5 {[%clk 0:01:44.3]} 18... Qxe5 {[%clk 0:02:00.3]} 19. Qa6
{[%clk 0:01:43.8]} 19... Qc7 {[%clk 0:01:54.1]} 20. Rab1 {[%clk 0:01:41]} 20...
Rab8 {[%clk 0:01:54.8]} 21. Rb4 {[%clk 0:01:34.8]} 21... Rxb4 {[%clk 0:01:19.9]}
22. axb4 {[%clk 0:01:35.7]} 22... Rb8 {[%clk 0:01:20.4]} 23. Rb1 {[%clk
0:01:34.3]} 23... Rb5 {[%clk 0:01:19.1]} 24. h4 {[%clk 0:01:25.3]} 24... Kf7
{[%clk 0:01:09.2]} 25. h5 {[%clk 0:01:17.5]} 25... Ke7 {[%clk 0:01:07.6]} 26.
Qa1 {[%clk 0:01:04.9]} 26... Kf7 {[%clk 0:01:06.5]} 27. g3 {[%clk 0:00:55.9]}
27... h6 {[%clk 0:01:00.3]} 28. Kg2 {[%clk 0:00:55.6]} 28... e5 {[%clk
0:00:58.8]} 29. Rb2 {[%clk 0:00:44.3]} 29... Qe7 {[%clk 0:00:55.5]} 30. Ra2
{[%clk 0:00:42.8]} 30... Rb7 {[%clk 0:00:51.7]} 31. Ra6 {[%clk 0:00:40.7]} 31...
Rc7 {[%clk 0:00:51.7]} 32. Qa2 {[%clk 0:00:35.8]} 32... Kg8 {[%clk 0:00:43.6]}
33. Qa4 {[%clk 0:00:30.2]} 33... Qd7 {[%clk 0:00:36.2]} 34. Qa1 {[%clk 0:00:30]}
34... Qf5 {[%clk 0:00:34.6]} 35. Rxa7 {[%clk 0:00:27.1]} 35... Qf3+ {[%clk
0:00:34.6]} 36. Kg1 {[%clk 0:00:27.1]} 36... Rxa7 {[%clk 0:00:34.7]} 37. Qxa7
{[%clk 0:00:26.5]} 37... Qd1+ {[%clk 0:00:32.3]} 38. Kg2 {[%clk 0:00:25.9]}
38... Qf3+ {[%clk 0:00:32.9]} 39. Kg1 {[%clk 0:00:26]} 39... d4 {[%clk
0:00:33.6]} 40. Qa8+ {[%clk 0:00:22.4]} 40... Kh7 {[%clk 0:00:16.5]} 41. Qxc6
{[%clk 0:00:21.5]} 41... Qf5 {[%clk 0:00:14.9]} 42. exd4 {[%clk 0:00:18.4]}
42... exd4 {[%clk 0:00:14.6]} 43. Qg6+ {[%clk 0:00:17.1]} 43... Qxg6 {[%clk
0:00:14.6]} 44. hxg6+ {[%clk 0:00:18]} 44... Kxg6 {[%clk 0:00:14.8]} 45. c6
{[%clk 0:00:16.8]} 45... d3 {[%clk 0:00:12.2]} 46. Kf1 {[%clk 0:00:15.1]} 46...
Kf7 {[%clk 0:00:10.1]} 47. c7 {[%clk 0:00:15.2]} 47... d2 {[%clk 0:00:10.8]} 48.
Ke2 {[%clk 0:00:14.3]} 48... Ke7 {[%clk 0:00:10.7]} 49. c8=Q {[%clk 0:00:14.1]}
49... d1=Q+ {[%clk 0:00:11.3]} 50. Kxd1 {[%clk 0:00:14.1]} 1-0

[Event "Early-Titled-Tuesday-Blitz-May-14-2024"]
[Site "Chess.com"]
[Date "2024.05.14"]
[Round "1"]
[White "Louis-Paulsen-Fan"]
[Black "ansko1999"]
[Result "0-1"]
[WhiteElo "2332"]
[BlackElo "2655"]
[TimeControl "180+1"]
[EndTime "8:07:48 PDT"]
[Termination "ansko1999 won by resignation"]

1. d4 {[%clk 0:02:57.9]} 1... d5 {[%clk 0:02:59]} 2. Nf3 {[%clk 0:02:56.5]} 2...
c5 {[%clk 0:02:58.6]} 3. e3 {[%clk 0:02:53.3]} 3... e6 {[%clk 0:02:56]} 4. c4
{[%clk 0:02:53.5]} 4... Nf6 {[%clk 0:02:55.6]} 5. Nc3 {[%clk 0:02:53.3]} 5... a6
{[%clk 0:02:54.7]} 6. a3 {[%clk 0:02:51.3]} 6... Nc6 {[%clk 0:02:54.1]} 7. dxc5
{[%clk 0:02:46]} 7... Bxc5 {[%clk 0:02:52]} 8. cxd5 {[%clk 0:02:46.1]} 8... exd5
{[%clk 0:02:51.6]} 9. b4 {[%clk 0:02:45.6]} 9... Ba7 {[%clk 0:02:49.8]} 10. Bb2
{[%clk 0:02:46]} 10... O-O {[%clk 0:02:48.6]} 11. Be2 {[%clk 0:02:46.2]} 11...
Bg4 {[%clk 0:02:42.2]} 12. O-O {[%clk 0:02:44.3]} 12... Rc8 {[%clk 0:02:39.6]}
13. Rc1 {[%clk 0:02:41.4]} 13... Bb8 {[%clk 0:02:34.1]} 14. Na4 {[%clk
0:02:27.9]} 14... Qd6 {[%clk 0:02:28.7]} 15. g3 {[%clk 0:02:28.2]} 15... Ne4
{[%clk 0:02:09.5]} 16. Nc5 {[%clk 0:02:25.9]} 16... Nxc5 {[%clk 0:01:57.1]} 17.
Rxc5 {[%clk 0:02:26.8]} 17... Rfd8 {[%clk 0:01:55.3]} 18. Nd4 {[%clk 0:02:17]}
18... Bxe2 {[%clk 0:01:45.9]} 19. Qxe2 {[%clk 0:02:16.6]} 19... Ba7 {[%clk
0:01:46]} 20. Nxc6 {[%clk 0:02:03.2]} 20... Rxc6 {[%clk 0:01:35.7]} 21. Rxc6
{[%clk 0:02:03]} 21... Qxc6 {[%clk 0:01:36]} 22. Rc1 {[%clk 0:01:59.9]} 22...
Qd7 {[%clk 0:01:27.6]} 23. Qc2 {[%clk 0:01:57.7]} 23... Bb6 {[%clk 0:01:05.9]}
24. Qc3 {[%clk 0:01:50.9]} 24... Qg4 {[%clk 0:00:51.1]} 25. h3 {[%clk
0:01:40.2]} 25... Qg6 {[%clk 0:00:46.8]} 26. Qe5 {[%clk 0:01:33.7]} 26... h6
{[%clk 0:00:41.3]} 27. Rd1 {[%clk 0:01:29.7]} 27... Kh7 {[%clk 0:00:29.2]} 28.
Kg2 {[%clk 0:01:22.2]} 28... Qe4+ {[%clk 0:00:25.9]} 29. Qxe4+ {[%clk
0:01:21.2]} 29... dxe4 {[%clk 0:00:26.8]} 30. Rxd8 {[%clk 0:01:14.3]} 30... Bxd8
{[%clk 0:00:27.7]} 31. g4 {[%clk 0:01:14.8]} 31... g6 {[%clk 0:00:25]} 32. Kg3
{[%clk 0:01:11.6]} 32... Bc7+ {[%clk 0:00:24.5]} 33. f4 {[%clk 0:01:08.7]} 33...
f5 {[%clk 0:00:23]} 34. Bd4 {[%clk 0:01:00.4]} 34... Bd8 {[%clk 0:00:17.3]} 35.
a4 {[%clk 0:00:55.3]} 35... b5 {[%clk 0:00:17.5]} 36. axb5 {[%clk 0:00:54.3]}
36... axb5 {[%clk 0:00:18.4]} 37. Bc5 {[%clk 0:00:54.8]} 37... Kg8 {[%clk
0:00:18.4]} 38. h4 {[%clk 0:00:39.7]} 38... fxg4 {[%clk 0:00:16.1]} 39. Kxg4
{[%clk 0:00:40.2]} 39... h5+ {[%clk 0:00:16.4]} 40. Kg3 {[%clk 0:00:40.7]} 40...
Kf7 {[%clk 0:00:16.8]} 41. Kh3 {[%clk 0:00:20.1]} 41... Ke6 {[%clk 0:00:17]} 42.
Kg3 {[%clk 0:00:20.3]} 42... Kd5 {[%clk 0:00:17.2]} 43. Kh3 {[%clk 0:00:17.6]}
43... Bf6 {[%clk 0:00:16.1]} 44. Kg3 {[%clk 0:00:16.5]} 44... Kc4 {[%clk
0:00:16.4]} 45. f5 {[%clk 0:00:16.2]} 45... gxf5 {[%clk 0:00:16.2]} 46. Kf4
{[%clk 0:00:16.8]} 46... Bxh4 {[%clk 0:00:15.1]} 47. Kxf5 {[%clk 0:00:17.1]}
47... Kd3 {[%clk 0:00:15.5]} 48. Kg6 {[%clk 0:00:16.1]} 48... Bf2 {[%clk
0:00:15.8]} 49. Kxh5 {[%clk 0:00:15.1]} 49... Bxe3 {[%clk 0:00:15.8]} 50. Be7
{[%clk 0:00:13.1]} 50... Bd2 {[%clk 0:00:14.9]} 51. Kg4 {[%clk 0:00:12.7]} 51...
e3 {[%clk 0:00:14.7]} 52. Kf3 {[%clk 0:00:13]} 52... e2 {[%clk 0:00:15]} 53. Bh4
{[%clk 0:00:13.1]} 53... e1=Q {[%clk 0:00:15.3]} 54. Bxe1 {[%clk 0:00:13.2]}
54... Bxe1 {[%clk 0:00:16.2]} 0-1

[Event "Early-Titled-Tuesday-Blitz-May-14-2024"]
[Site "Chess.com"]
[Date "2024.05.14"]
[Round "1"]
[White "Titus369"]
[Black "briesmas"]
[Result "0-1"]
[WhiteElo "2609"]
[BlackElo "2334"]
[TimeControl "180+1"]
[EndTime "8:07:48 PDT"]
[Termination "briesmas won by checkmate"]

1. e4 {[%clk 0:02:46.6]} 1... c5 {[%clk 0:02:57.5]} 2. Nf3 {[%clk 0:02:40]} 2...
d6 {[%clk 0:02:55.1]} 3. d4 {[%clk 0:02:34.7]} 3... cxd4 {[%clk 0:02:49.2]} 4.
Nxd4 {[%clk 0:02:35.6]} 4... Nf6 {[%clk 0:02:48.2]} 5. Nc3 {[%clk 0:02:35]} 5...
a6 {[%clk 0:02:47.4]} 6. h3 {[%clk 0:02:29]} 6... e5 {[%clk 0:02:46.7]} 7. Nde2
{[%clk 0:02:28.1]} 7... h5 {[%clk 0:02:46.3]} 8. Ng1 {[%clk 0:02:27.1]} 8... Be6
{[%clk 0:02:40.3]} 9. Bg5 {[%clk 0:02:16.7]} 9... Be7 {[%clk 0:02:36.5]} 10. Nf3
{[%clk 0:02:05]} 10... Nbd7 {[%clk 0:02:28.3]} 11. a4 {[%clk 0:01:59.1]} 11...
Rc8 {[%clk 0:02:22.8]} 12. Bd3 {[%clk 0:01:47.4]} 12... O-O {[%clk 0:01:57]} 13.
O-O {[%clk 0:01:29.4]} 13... Qb6 {[%clk 0:01:57]} 14. Rb1 {[%clk 0:01:23.8]}
14... Nc5 {[%clk 0:01:40.4]} 15. a5 {[%clk 0:01:23]} 15... Qb4 {[%clk
0:01:33.4]} 16. Bd2 {[%clk 0:01:19.3]} 16... Nxd3 {[%clk 0:01:02.3]} 17. Nd5
{[%clk 0:01:17.9]} 17... Bxd5 {[%clk 0:00:34.5]} 18. Bxb4 {[%clk 0:01:06.2]}
18... Nxb4 {[%clk 0:00:34.7]} 19. exd5 {[%clk 0:01:05]} 19... Rxc2 {[%clk
0:00:33.3]} 20. Ng5 {[%clk 0:00:50.8]} 20... Rfc8 {[%clk 0:00:29.6]} 21. Qf3
{[%clk 0:00:46.4]} 21... Nbxd5 {[%clk 0:00:23.5]} 22. b4 {[%clk 0:00:42.5]}
22... R8c3 {[%clk 0:00:20.1]} 23. Qd1 {[%clk 0:00:23.5]} 23... Nf4 {[%clk
0:00:20.1]} 24. Re1 {[%clk 0:00:15.1]} 24... N6d5 {[%clk 0:00:13.5]} 25. Rb3
{[%clk 0:00:14.7]} 25... Bxg5 {[%clk 0:00:11.3]} 26. Rxc3 {[%clk 0:00:13.1]}
26... Rxc3 {[%clk 0:00:12.2]} 27. Qxh5 {[%clk 0:00:13.1]} 27... Nxh5 {[%clk
0:00:12]} 28. Rd1 {[%clk 0:00:13]} 28... Nhf4 {[%clk 0:00:09.4]} 29. h4 {[%clk
0:00:11.4]} 29... Rc1 {[%clk 0:00:09.1]} 30. Rxc1 {[%clk 0:00:10.3]} 30... Ne2+
{[%clk 0:00:09.5]} 31. Kf1 {[%clk 0:00:10.7]} 31... Nxc1 {[%clk 0:00:10.4]} 32.
hxg5 {[%clk 0:00:11.6]} 32... Nxb4 {[%clk 0:00:09.9]} 33. Ke1 {[%clk 0:00:11.5]}
33... Nc6 {[%clk 0:00:10]} 34. Kd2 {[%clk 0:00:12.4]} 34... Nb3+ {[%clk
0:00:10.5]} 35. Kc3 {[%clk 0:00:13.3]} 35... Nbxa5 {[%clk 0:00:11.4]} 36. Kd3
{[%clk 0:00:13.2]} 36... b5 {[%clk 0:00:11.8]} 37. Ke4 {[%clk 0:00:14.1]} 37...
Ne7 {[%clk 0:00:11.3]} 38. Kd3 {[%clk 0:00:15]} 38... d5 {[%clk 0:00:11.4]} 39.
Kc2 {[%clk 0:00:15.9]} 39... b4 {[%clk 0:00:11.7]} 40. Kd2 {[%clk 0:00:16.8]}
40... b3 {[%clk 0:00:12.2]} 41. f4 {[%clk 0:00:17.7]} 41... exf4 {[%clk
0:00:11.6]} 42. Kc3 {[%clk 0:00:17.9]} 42... Nf5 {[%clk 0:00:11.2]} 43. Kb2
{[%clk 0:00:18.1]} 43... d4 {[%clk 0:00:11.5]} 44. Ka3 {[%clk 0:00:19]} 44... d3
{[%clk 0:00:11.5]} 45. Kb2 {[%clk 0:00:19.9]} 45... d2 {[%clk 0:00:11.7]} 46. g3
{[%clk 0:00:19.6]} 46... d1=Q {[%clk 0:00:11.4]} 47. gxf4 {[%clk 0:00:20.5]}
47... Qc2+ {[%clk 0:00:10.5]} 48. Ka3 {[%clk 0:00:21.4]} 48... Qa2+ {[%clk
0:00:08.5]} 49. Kb4 {[%clk 0:00:22.3]} 49... Nc6+ {[%clk 0:00:08.5]} 50. Kc3
{[%clk 0:00:22.3]} 50... b2 {[%clk 0:00:07.8]} 51. g6 {[%clk 0:00:19.6]} 51...
fxg6 {[%clk 0:00:06.8]} 52. Kd2 {[%clk 0:00:14]} 52... b1=Q+ {[%clk 0:00:07.1]}
53. Kc3 {[%clk 0:00:14.9]} 53... Qbc2# {[%clk 0:00:06.9]} 0-1

[Event "Early-Titled-Tuesday-Blitz-May-14-2024"]
[Site "Chess.com"]
[Date "2024.05.14"]
[Round "1"]
[White "wonderfultime"]
[Black "YouJustFoundYourGodfather"]
[Result "1-0"]
[WhiteElo "3057"]
[BlackElo "2544"]
[TimeControl "180+1"]
[EndTime "8:07:50 PDT"]
[Termination "wonderfultime won by resignation"]

1. d4 {[%clk 0:03:00.9]} 1... Nf6 {[%clk 0:02:55.9]} 2. Nf3 {[%clk 0:03:00.6]}
2... e6 {[%clk 0:02:55.9]} 3. Bf4 {[%clk 0:02:59.5]} 3... d5 {[%clk 0:02:53.4]}
4. e3 {[%clk 0:02:59.5]} 4... Bd6 {[%clk 0:02:54]} 5. Nbd2 {[%clk 0:02:58.5]}
5... O-O {[%clk 0:02:52.4]} 6. c3 {[%clk 0:02:58.9]} 6... c5 {[%clk 0:02:51.4]}
7. Bd3 {[%clk 0:02:58.9]} 7... Qc7 {[%clk 0:02:51]} 8. Bxd6 {[%clk 0:02:59]}
8... Qxd6 {[%clk 0:02:51.9]} 9. Ne5 {[%clk 0:02:59.8]} 9... b6 {[%clk
0:02:50.8]} 10. Qe2 {[%clk 0:03:00]} 10... a5 {[%clk 0:02:49.7]} 11. O-O {[%clk
0:03:00.4]} 11... Ba6 {[%clk 0:02:49.6]} 12. Bxa6 {[%clk 0:03:01]} 12... Nxa6
{[%clk 0:02:43]} 13. f4 {[%clk 0:03:01.4]} 13... Nc7 {[%clk 0:02:39]} 14. Rf3
{[%clk 0:03:00.5]} 14... Ne4 {[%clk 0:02:11.4]} 15. Nxe4 {[%clk 0:01:20.5]}
15... dxe4 {[%clk 0:02:12.3]} 16. Rh3 {[%clk 0:01:21.4]} 16... f6 {[%clk
0:02:07.2]} 17. Qh5 {[%clk 0:01:21.4]} 17... h6 {[%clk 0:01:51.3]} 18. Ng4
{[%clk 0:01:20.4]} 18... Rf7 {[%clk 0:01:36.6]} 19. Qg6 {[%clk 0:01:17.7]} 19...
Kf8 {[%clk 0:01:36.1]} 20. Qxe4 {[%clk 0:01:03.3]} 20... f5 {[%clk 0:01:23.9]}
21. Qe5 {[%clk 0:01:03.5]} 21... Qc6 {[%clk 0:01:19.9]} 22. Nf2 {[%clk
0:00:57.5]} 22... Rd8 {[%clk 0:01:19.2]} 23. c4 {[%clk 0:00:45.8]} 23... Ne8
{[%clk 0:00:48.1]} 24. dxc5 {[%clk 0:00:39.6]} 24... bxc5 {[%clk 0:00:46.1]} 25.
e4 {[%clk 0:00:40.2]} 25... fxe4 {[%clk 0:00:37.9]} 26. Qxe4 {[%clk 0:00:38]}
26... Qxe4 {[%clk 0:00:35.9]} 27. Nxe4 {[%clk 0:00:38.9]} 27... Rxf4 {[%clk
0:00:36.3]} 28. Nxc5 {[%clk 0:00:38.8]} 28... Kf7 {[%clk 0:00:35.4]} 29. b3
{[%clk 0:00:34.8]} 29... Nf6 {[%clk 0:00:28.5]} 30. Rd3 {[%clk 0:00:27.4]} 30...
Rc8 {[%clk 0:00:26.1]} 31. Nd7 {[%clk 0:00:23.1]} 31... Ne4 {[%clk 0:00:20.5]}
32. Ne5+ {[%clk 0:00:22.9]} 32... Kf6 {[%clk 0:00:20.3]} 33. Nf3 {[%clk
0:00:23.3]} 33... Nc5 {[%clk 0:00:12.8]} 34. Re3 {[%clk 0:00:23.6]} 34... g5
{[%clk 0:00:11.8]} 35. h3 {[%clk 0:00:22.8]} 35... a4 {[%clk 0:00:10.8]} 36. b4
{[%clk 0:00:22.5]} 36... Nd7 {[%clk 0:00:09.4]} 37. Rae1 {[%clk 0:00:22.2]}
37... e5 {[%clk 0:00:07.4]} 38. Rd1 {[%clk 0:00:18.3]} 38... Rc7 {[%clk
0:00:05.4]} 39. Nd2 {[%clk 0:00:14.7]} 39... Nb6 {[%clk 0:00:05]} 40. Ne4+
{[%clk 0:00:13.6]} 40... Kf5 {[%clk 0:00:02.9]} 41. g4+ {[%clk 0:00:11.8]} 41...
Kg6 {[%clk 0:00:02.5]} 42. Rd6+ {[%clk 0:00:12.2]} 42... Kh7 {[%clk 0:00:02.6]}
43. Rxb6 {[%clk 0:00:11.6]} 43... Rxc4 {[%clk 0:00:03.3]} 44. Nf6+ {[%clk
0:00:12.1]} 44... Kh8 {[%clk 0:00:02.8]} 45. Rb8+ {[%clk 0:00:12.1]} 45... Kg7
{[%clk 0:00:03.3]} 46. Nh5+ {[%clk 0:00:12.8]} 46... Kf7 {[%clk 0:00:03.6]} 47.
Nxf4 {[%clk 0:00:13.4]} 1-0

[Event "Early-Titled-Tuesday-Blitz-May-14-2024"]
[Site "Chess.com"]
[Date "2024.05.14"]
[Round "1"]
[White "MAGMAchess02"]
[Black "Let_it_be_1"]
[Result "0-1"]
[WhiteElo "2282"]
[BlackElo "2616"]
[TimeControl "180+1"]
[EndTime "8:07:50 PDT"]
[Termination "Let_it_be_1 won on time"]

1. Nf3 {[%clk 0:03:00]} 1... d5 {[%clk 0:02:59.8]} 2. c4 {[%clk 0:03:00]} 2...
e6 {[%clk 0:02:59.9]} 3. g3 {[%clk 0:02:58.7]} 3... Nf6 {[%clk 0:02:59.5]} 4.
Bg2 {[%clk 0:02:58.9]} 4... Be7 {[%clk 0:02:59.5]} 5. O-O {[%clk 0:02:58.3]}
5... O-O {[%clk 0:02:59.5]} 6. d4 {[%clk 0:02:57.8]} 6... dxc4 {[%clk
0:02:59.2]} 7. Qc2 {[%clk 0:02:56.1]} 7... a6 {[%clk 0:02:59.5]} 8. a4 {[%clk
0:02:51]} 8... Bd7 {[%clk 0:02:59.4]} 9. Ne5 {[%clk 0:02:47.7]} 9... Bc6 {[%clk
0:02:57.4]} 10. Nxc6 {[%clk 0:02:44.7]} 10... Nxc6 {[%clk 0:02:57.3]} 11. e3
{[%clk 0:02:43.4]} 11... Na5 {[%clk 0:02:32.2]} 12. Nd2 {[%clk 0:02:41.6]} 12...
c5 {[%clk 0:02:30.4]} 13. Nxc4 {[%clk 0:02:15.1]} 13... cxd4 {[%clk 0:02:26.4]}
14. Nxa5 {[%clk 0:02:14.5]} 14... Qxa5 {[%clk 0:02:23.3]} 15. Bxb7 {[%clk
0:02:07.4]} 15... Rab8 {[%clk 0:02:13.1]} 16. Bf3 {[%clk 0:02:06.7]} 16... Rfc8
{[%clk 0:02:05.3]} 17. Qe2 {[%clk 0:01:54.7]} 17... dxe3 {[%clk 0:01:39.1]} 18.
Bxe3 {[%clk 0:01:54.3]} 18... Bc5 {[%clk 0:01:30.4]} 19. Rfc1 {[%clk 0:01:32.3]}
19... Bxe3 {[%clk 0:01:26.4]} 20. Qxe3 {[%clk 0:01:33.2]} 20... h6 {[%clk
0:01:09.7]} 21. b3 {[%clk 0:01:31.8]} 21... Qb4 {[%clk 0:01:07.8]} 22. Rab1
{[%clk 0:00:59.7]} 22... a5 {[%clk 0:01:03.7]} 23. Kg2 {[%clk 0:00:47.3]} 23...
Nd5 {[%clk 0:00:58.9]} 24. Bxd5 {[%clk 0:00:44.2]} 24... exd5 {[%clk 0:00:58.7]}
25. Qd3 {[%clk 0:00:39.4]} 25... d4 {[%clk 0:00:54.4]} 26. Rxc8+ {[%clk
0:00:35.2]} 26... Rxc8 {[%clk 0:00:54.1]} 27. Rd1 {[%clk 0:00:35.7]} 27... Rd8
{[%clk 0:00:43.8]} 28. Qc4 {[%clk 0:00:35.6]} 28... Qb7+ {[%clk 0:00:28.7]} 29.
f3 {[%clk 0:00:36]} 29... Qd7 {[%clk 0:00:27]} 30. Rd3 {[%clk 0:00:27.7]} 30...
Qd6 {[%clk 0:00:26.1]} 31. h4 {[%clk 0:00:19.1]} 31... Qe5 {[%clk 0:00:25.8]}
32. Kh3 {[%clk 0:00:13.7]} 32... h5 {[%clk 0:00:24.9]} 33. Rd2 {[%clk
0:00:09.7]} 33... Qe3 {[%clk 0:00:24]} 34. Qe2 {[%clk 0:00:05.2]} 34... Qxb3
{[%clk 0:00:22.8]} 35. Qe7 {[%clk 0:00:05]} 35... Qe6+ {[%clk 0:00:20.7]} 36.
Qxe6 {[%clk 0:00:04.6]} 36... fxe6 {[%clk 0:00:21.5]} 37. f4 {[%clk 0:00:04.8]}
37... Kf7 {[%clk 0:00:20.5]} 38. Kg2 {[%clk 0:00:04.8]} 38... e5 {[%clk
0:00:20.8]} 39. fxe5 {[%clk 0:00:04.5]} 39... Ke6 {[%clk 0:00:21.1]} 40. Kf3
{[%clk 0:00:03]} 40... Kxe5 {[%clk 0:00:21.4]} 41. Rb2 {[%clk 0:00:03.6]} 41...
d3 {[%clk 0:00:20.7]} 42. Ke3 {[%clk 0:00:03.5]} 42... d2 {[%clk 0:00:20.3]} 43.
Rb5+ {[%clk 0:00:02.8]} 43... Rd5 {[%clk 0:00:19.8]} 44. Rxd5+ {[%clk
0:00:02.6]} 44... Kxd5 {[%clk 0:00:20.2]} 45. Kxd2 {[%clk 0:00:03.5]} 45... Kc4
{[%clk 0:00:18.2]} 46. Ke3 {[%clk 0:00:03.1]} 46... Kb4 {[%clk 0:00:18.5]} 47.
Kd4 {[%clk 0:00:02.3]} 47... Kxa4 {[%clk 0:00:18.7]} 48. Kc4 {[%clk 0:00:02.9]}
48... Ka3 {[%clk 0:00:18.5]} 49. Kc3 {[%clk 0:00:03.2]} 49... a4 {[%clk
0:00:19]} 50. Kc2 {[%clk 0:00:01.8]} 50... Kb4 {[%clk 0:00:19]} 0-1